bitfinex/quotes_BTCUSD_20240605
["timestamp","ask_amount","ask_price","bid_price","bid_amount"]
[1717555025924,0.55229234,71145.0,71144.0,0.028]
[1717555026377,0.38139234,71145.0,71144.0,0.028]
[1717555026597,0.55229234,71145.0,71144.0,0.028]
[1717555026812,0.55229234,71145.0,71144.0,0.014]
[1717555027037,0.00017434,71137.0,71136.0,0.0210916]
[1717555027261,0.42047434,71137.0,71136.0,0.15873922]
[1717555027721,0.2494,71137.0,71136.0,0.15873922]
[1717555027939,0.4203,71137.0,71136.0,0.15873922]
[1717555028379,0.42047434,71137.0,71136.0,0.15873922]
[1717555028613,0.4203,71137.0,71136.0,0.15873922]
[1717555028827,0.4203,71137.0,71136.0,0.18173922]
[1717555029055,0.4203,71137.0,71136.0,0.19573922]
[1717555029990,0.4203,71137.0,71136.0,0.20973922]
[1717555030845,0.2494,71137.0,71136.0,0.20973922]
[1717555031068,0.2344,71144.0,71141.0,0.01982566]
[1717555031293,0.2344,71144.0,71136.0,0.60973922]
[1717555031294,0.2344,71144.0,71143.0,0.01982566]
[1717555031533,0.2344,71144.0,71143.0,0.16424459]
[1717555031752,0.2344,71144.0,71143.0,0.18724459]
[1717555031965,0.2344,71144.0,71143.0,0.18851101]
[1717555032375,0.2344,71144.0,71143.0,0.16741893]
[1717555032884,0.2344,71144.0,71143.0,0.18141893]
[1717555033779,0.2344,71144.0,71143.0,0.20124459]
[1717555034212,0.2344,71144.0,71143.0,0.19541893]
[1717555034453,0.2344,71144.0,71143.0,0.028]
[1717555034687,0.37513334,71144.0,71143.0,0.028]
[1717555035786,0.374959,71144.0,71143.0,0.028]
[1717555036240,0.2344,71144.0,71143.0,0.014]
[1717555036454,0.2344,71144.0,71143.0,0.022]
[1717555036872,0.23457434,71144.0,71143.0,0.008]
[1717555037093,0.2344,71144.0,71143.0,0.008]
[1717555037214,0.23457434,71144.0,71143.0,0.013]
[1717555037418,0.2344,71144.0,71143.0,0.013]
[1717555037652,0.2344,71144.0,71143.0,0.15841893]
[1717555038064,0.2344,71144.0,71143.0,0.17141893]
[1717555038273,0.2344,71144.0,71143.0,0.19441893]
[1717555038472,0.2344,71144.0,71143.0,0.18141893]
[1717555038909,0.2344,71144.0,71143.0,0.19541893]
[1717555039193,0.23457434,71144.0,71143.0,0.028]
[1717555039612,0.23457434,71144.0,71143.0,0.014]
[1717555040118,0.00017434,71139.0,71131.0,0.140584]
[1717555040336,0.41217434,71139.0,71132.0,0.26741893]
[1717555040561,0.41217434,71139.0,71132.0,0.40800193]
[1717555040562,0.412,71139.0,71132.0,0.40800193]
[1717555040774,0.412,71139.0,71134.0,0.01982566]
[1717555040987,0.412,71139.0,71135.0,0.18724459]
[1717555041168,0.412,71139.0,71136.0,0.1]
[1717555041470,0.412,71139.0,71137.0,0.16741893]
[1717555043721,0.412,71139.0,71137.0,0.19541893]
[1717555044148,0.412,71139.0,71137.0,0.16741893]
[1717555044393,0.2411,71139.0,71137.0,0.18141893]
[1717555044604,0.2411,71139.0,71137.0,0.19541893]
[1717555044819,0.2411,71139.0,71137.0,0.18141893]
[1717555046941,0.2411,71139.0,71137.0,0.19541893]
[1717555049204,0.2411,71139.0,71137.0,0.17241893]
[1717555049410,0.14074534,71138.0,71137.0,0.17241893]
[1717555049670,0.14074534,71138.0,71137.0,0.028]
[1717555049839,0.14074534,71138.0,71137.0,0.04232029]
[1717555050084,0.140571,71138.0,71137.0,0.04232029]
[1717555050512,0.140571,71138.0,71137.0,0.02832029]
[1717555050713,0.140571,71138.0,71137.0,0.01432029]
[1717555050840,0.140571,71138.0,71137.0,0.02832029]
[1717555051047,0.140571,71138.0,71137.0,0.04032029]
[1717555051265,0.140571,71138.0,71137.0,0.17273922]
[1717555051488,0.140571,71138.0,71137.0,0.15873922]
[1717555052971,0.140571,71138.0,71137.0,0.17273922]
[1717555053821,0.140571,71138.0,71137.0,0.18673922]
[1717555054181,0.140571,71138.0,71137.0,0.17273922]
[1717555054408,0.140571,71138.0,71137.0,0.18673922]
[1717555054616,0.140571,71138.0,71137.0,0.17241893]
[1717555056133,0.640571,71138.0,71137.0,0.17241893]
[1717555056381,0.64074534,71138.0,71137.0,0.17241893]
[1717555060361,0.640571,71138.0,71137.0,0.17241893]
[1717555060580,0.811471,71138.0,71137.0,0.17241893]
[1717555060789,0.81164534,71138.0,71137.0,0.17241893]
[1717555062103,0.811471,71138.0,71137.0,0.17241893]
[1717555062310,0.81164534,71138.0,71137.0,0.17241893]
[1717555063790,0.64074534,71138.0,71137.0,0.17241893]
[1717555064037,0.70904534,71138.0,71137.0,0.17241893]
[1717555066037,0.70904534,71138.0,71137.0,0.028]
[1717555066038,0.99018834,71138.0,71137.0,0.028]
[1717555066262,0.99018834,71138.0,71123.0,0.19202798]
[1717555066263,0.140599,71124.0,71123.0,0.15]
[1717555066508,0.37557334,71124.0,71123.0,0.16432029]
[1717555066965,0.375399,71124.0,71123.0,0.16432029]
[1717555067192,0.37557334,71124.0,71123.0,0.16432029]
[1717555067663,0.37557334,71124.0,71123.0,0.17832029]
[1717555067905,0.47817334,71124.0,71123.0,0.16432029]
[1717555069197,0.47917334,71124.0,71123.0,0.17632029]
[1717555069413,0.48017334,71124.0,71123.0,0.18632029]
[1717555069630,0.313499,71124.0,71123.0,0.18632029]
[1717555069843,0.001,71124.0,71123.0,0.34373922]
[1717555070051,0.1709,71128.0,71125.0,0.01982566]
[1717555070304,0.947043,71138.0,71126.0,0.16741893]
[1717555070305,0.1709,71135.0,71126.0,0.16741893]
[1717555070508,0.00017434,71134.0,71126.0,0.16741893]
[1717555070742,0.140584,71132.0,71126.0,0.16741893]
[1717555071940,0.140584,71132.0,71126.0,0.18724459]
[1717555072154,0.1709,71135.0,71126.0,0.18724459]
[1717555072155,0.1709,71135.0,71127.0,0.01982566]
[1717555072371,0.311479,71135.0,71130.0,0.01982566]
[1717555072588,0.1709,71134.0,71131.0,0.14441893]
[1717555072863,0.311479,71134.0,71131.0,0.14441893]
[1717555073086,0.140581,71133.0,71131.0,0.14441893]
[1717555073554,0.14075734,71132.0,71131.0,0.14441893]
[1717555074676,0.14075734,71132.0,71131.0,0.15141893]
[1717555075743,0.14075734,71132.0,71131.0,0.15741893]
[1717555075956,0.14075734,71132.0,71131.0,0.14441893]
[1717555076353,0.14075734,71132.0,71131.0,0.15641893]
[1717555077224,0.14075734,71132.0,71131.0,0.15041893]
[1717555077656,0.14075734,71132.0,71131.0,0.15841893]
[1717555079220,0.14075734,71132.0,71131.0,0.14441893]
[1717555079432,0.14075734,71132.0,71131.0,0.15841893]
[1717555079647,0.14075734,71132.0,71131.0,0.17241893]
[1717555079858,0.14075734,71132.0,71131.0,0.14441893]
[1717555080324,0.14075734,71132.0,71131.0,0.16941893]
[1717555080998,0.30485734,71132.0,71131.0,0.025]
[1717555081858,0.86192434,71132.0,71131.0,0.025]
[1717555083334,1.14309134,71132.0,71131.0,0.025]
[1717555083543,0.66192434,71132.0,71131.0,0.025]
[1717555084162,0.94309134,71132.0,71131.0,0.025]
[1717555084363,0.94309134,71132.0,71131.0,0.012]
[1717555084575,0.14077334,71124.0,71123.0,0.150946]
[1717555084783,0.14077334,71124.0,71123.0,0.16526629]
[1717555084784,0.31167334,71124.0,71123.0,0.16526629]
[1717555085874,0.311499,71124.0,71123.0,0.16526629]
[1717555086348,0.311499,71124.0,71123.0,0.17626629]
[1717555087304,0.311499,71124.0,71123.0,0.18726629]
[1717555087740,0.311499,71124.0,71123.0,0.17626629]
[1717555088192,0.31167334,71124.0,71123.0,0.17626629]
[1717555089951,0.31167334,71124.0,71123.0,0.172946]
[1717555090137,0.31167334,71124.0,71123.0,0.150946]
[1717555090353,0.31167334,71124.0,71123.0,0.169946]
[1717555091682,0.14077334,71124.0,71123.0,0.169946]
[1717555092101,0.20917334,71124.0,71123.0,0.169946]
[1717555092758,0.36797334,71124.0,71123.0,0.169946]
[1717555093791,0.29957334,71124.0,71123.0,0.169946]
[1717555093999,0.36797334,71124.0,71123.0,0.169946]
[1717555094417,0.367799,71124.0,71123.0,0.169946]
[1717555094590,0.20917334,71124.0,71123.0,0.169946]
[1717555096139,0.00017434,71121.0,71119.0,0.02204311]
[1717555096386,0.2,71122.0,71101.0,0.000946]
[1717555096387,0.28125,71111.0,71109.0,0.01432029]
[1717555096609,0.37440134,71110.0,71109.0,0.01432029]
[1717555096822,0.20920134,71110.0,71109.0,0.01432029]
[1717555097697,0.20920134,71110.0,71109.0,0.02832029]
[1717555097928,0.31180134,71110.0,71109.0,0.01432029]
[1717555098891,0.1509,71114.0,71109.0,0.31163922]
[1717555098892,0.14062,71114.0,71109.0,0.31163922]
[1717555099106,0.14062,71114.0,71111.0,0.01982566]
[1717555099328,0.14062,71114.0,71112.0,0.14441893]
[1717555099541,0.140614,71117.0,71113.0,0.0757]
[1717555099753,0.140606,71121.0,71114.0,0.18724459]
[1717555099964,0.01699655,71124.0,71118.0,0.01982566]
[1717555100179,0.311598,71125.0,71119.0,0.14441893]
[1717555100397,0.00017434,71111.0,71109.0,0.04232029]
[1717555100632,0.00017434,71112.0,71109.0,0.01432029]
[1717555101281,0.00017434,71110.0,71109.0,0.01432029]
[1717555101514,0.0766,71114.0,71109.0,0.01432029]
[1717555101515,0.00017434,71112.0,71109.0,0.01432029]
[1717555101736,0.00017434,71116.0,71109.0,0.15873922]
[1717555102240,0.00017434,71112.0,71109.0,0.15873922]
[1717555102453,0.140627,71110.0,71109.0,0.15873922]
[1717555102879,0.140627,71110.0,71109.0,0.17273922]
[1717555103307,0.140627,71110.0,71109.0,0.17173922]
[1717555103486,0.140627,71110.0,71109.0,0.15873922]
[1717555103702,0.141627,71110.0,71109.0,0.16973922]
[1717555104565,0.001,71110.0,71109.0,0.16973922]
[1717555104786,0.001,71110.0,71109.0,0.18956488]
[1717555104994,0.001,71110.0,71109.0,0.26846488]
[1717555106760,0.001,71110.0,71109.0,0.44176488]
[1717555107392,0.001,71110.0,71109.0,0.58239388]
[1717555107576,0.001,71110.0,71109.0,0.58333988]
[1717555107833,0.001,71110.0,71109.0,0.56901959]
[1717555108768,0.001,71110.0,71109.0,0.011946]
[1717555108988,0.312627,71110.0,71109.0,0.011946]
[1717555109228,0.47030134,71110.0,71109.0,0.011946]
[1717555109834,0.67030134,71110.0,71109.0,0.011946]
[1717555110124,0.47030134,71110.0,71109.0,0.011946]
[1717555111401,0.67030134,71110.0,71109.0,0.011946]
[1717555111829,0.47030134,71110.0,71109.0,0.011946]
[1717555112910,0.95155534,71110.0,71109.0,0.011946]
[1717555113571,0.75155534,71110.0,71109.0,0.011946]
[1717555114074,0.75055534,71110.0,71109.0,0.000946]
[1717555114550,0.75055534,71110.0,71109.0,0.002946]
[1717555115877,0.75055534,71110.0,71109.0,0.000946]
[1717555116085,0.95055534,71110.0,71109.0,0.004946]
[1717555116423,0.95055534,71110.0,71109.0,0.000946]
[1717555116637,0.75555534,71110.0,71109.0,0.000946]
[1717555118196,1.60452827,71110.0,71109.0,0.000946]
[1717555118953,1.60152827,71110.0,71109.0,0.000946]
[1717555119421,1.60452827,71110.0,71109.0,0.000946]
[1717555119633,1.59952827,71110.0,71109.0,0.000946]
[1717555119792,1.10830934,71110.0,71109.0,0.000946]
[1717555120130,1.10830934,71110.0,71109.0,0.001946]
[1717555120131,1.31530934,71110.0,71109.0,0.001946]
[1717555120241,1.30730934,71110.0,71109.0,0.000946]
[1717555120658,1.30730934,71110.0,71109.0,0.002946]
[1717555120659,1.89478227,71110.0,71109.0,0.002946]
[1717555120870,1.89478227,71110.0,71101.0,0.000946]
[1717555120871,1.13768934,71102.0,71101.0,0.000946]
[1717555121092,1.30868934,71102.0,71101.0,0.000946]
[1717555121583,1.30868934,71102.0,71096.0,0.01432029]
[1717555121584,0.62213134,71097.0,71096.0,0.01432029]
[1717555121800,0.85643134,71097.0,71096.0,0.01432029]
[1717555122235,1.57943082,71097.0,71096.0,0.01432029]
[1717555122485,1.62775258,71097.0,71096.0,0.01432029]
[1717555122717,0.90348634,71092.0,71078.0,0.4731]
[1717555122936,0.90348634,71092.0,71083.0,0.01432029]
[1717555122937,1.36826189,71092.0,71083.0,0.01432029]
[1717555124063,1.37026189,71092.0,71083.0,0.01432029]
[1717555124298,1.71300527,71092.0,71083.0,0.01432029]
[1717555124521,1.81080258,71092.0,71083.0,0.01432029]
[1717555124740,1.71300527,71092.0,71083.0,0.01432029]
[1717555124963,1.71700527,71092.0,71083.0,0.01432029]
[1717555125686,1.75961017,71092.0,71083.0,0.01432029]
[1717555125899,1.80527898,71092.0,71083.0,0.01432029]
[1717555126121,1.46467408,71092.0,71083.0,0.01432029]
[1717555126362,1.13368027,71092.0,71083.0,0.01432029]
[1717555126630,1.13868027,71092.0,71083.0,0.01432029]
[1717555126872,1.34468027,71092.0,71091.0,0.003]
[1717555127038,1.33468027,71092.0,71091.0,0.002]
[1717555127270,1.32968027,71092.0,71091.0,0.002]
[1717555127465,1.61500527,71092.0,71091.0,0.002]
[1717555128112,1.61300527,71092.0,71091.0,0.002]
[1717555128474,0.142662,71092.0,71091.0,0.002]
[1717555128687,0.313662,71092.0,71091.0,0.002]
[1717555128885,0.311662,71092.0,71091.0,0.002]
[1717555128996,0.31183634,71092.0,71091.0,0.002]
[1717555129203,0.317662,71092.0,71091.0,0.003]
[1717555129420,0.322662,71092.0,71091.0,0.003]
[1717555129631,0.145662,71092.0,71091.0,0.002]
[1717555129850,0.001,71092.0,71091.0,0.008]
[1717555130056,0.141662,71092.0,71091.0,0.008]
[1717555130253,0.141662,71092.0,71091.0,0.012]
[1717555130254,0.142662,71092.0,71091.0,0.012]
[1717555130703,0.142662,71092.0,71091.0,0.008]
[1717555131124,0.143662,71092.0,71091.0,0.021]
[1717555131327,0.314662,71092.0,71091.0,0.021]
[1717555132388,0.314662,71092.0,71091.0,0.015]
[1717555132389,0.312662,71092.0,71091.0,0.015]
[1717555132594,0.312662,71092.0,71091.0,0.002]
[1717555132595,0.31183634,71092.0,71091.0,0.002]
[1717555132839,0.31283634,71092.0,71091.0,0.018]
[1717555133045,0.31383634,71092.0,71091.0,0.012]
[1717555133498,0.31383634,71092.0,71091.0,0.008]
[1717555133730,0.31383634,71092.0,71091.0,0.002]
[1717555133731,0.31283634,71092.0,71091.0,0.002]
[1717555133935,0.31283634,71092.0,71091.0,0.007]
[1717555134122,0.31383634,71092.0,71091.0,0.012]
[1717555134365,0.31383634,71092.0,71091.0,0.007]
[1717555134538,0.31383634,71092.0,71091.0,0.012]
[1717555135995,0.31383634,71092.0,71091.0,0.007]
[1717555136211,0.31483634,71092.0,71091.0,0.012]
[1717555136414,0.31483634,71092.0,71091.0,0.015]
[1717555136653,0.31183634,71092.0,71091.0,0.005]
[1717555137077,0.67196134,71092.0,71091.0,0.005]
[1717555139000,0.67196134,71092.0,71091.0,0.002]
[1717555139236,1.44550527,71092.0,71091.0,0.002]
[1717555139449,1.44550527,71092.0,71091.0,0.004]
[1717555140121,1.44550527,71092.0,71091.0,0.002]
[1717555140349,0.140702,71072.0,71071.0,0.002]
[1717555140635,0.140702,71072.0,71071.0,0.01632029]
[1717555141506,0.14087634,71072.0,71071.0,0.01632029]
[1717555143071,0.14287634,71072.0,71071.0,0.03132029]
[1717555143333,0.14187634,71072.0,71071.0,0.02532029]
[1717555143565,0.14287634,71072.0,71071.0,0.03132029]
[1717555144487,0.14287634,71072.0,71071.0,0.03226629]
[1717555144716,0.142702,71072.0,71071.0,0.03226629]
[1717555144943,0.313702,71072.0,71071.0,0.03226629]
[1717555145354,0.31387634,71072.0,71071.0,0.03226629]
[1717555145603,0.31387634,71072.0,71071.0,0.017946]
[1717555146049,0.313702,71072.0,71071.0,0.017946]
[1717555146968,0.313702,71072.0,71071.0,0.11977166]
[1717555146969,0.002,71072.0,71071.0,0.11977166]
[1717555147202,0.002,71072.0,71071.0,0.42239059]
[1717555147421,0.002,71072.0,71071.0,0.57309459]
[1717555147642,0.002,71072.0,71071.0,0.56309459]
[1717555148068,0.001,71072.0,71071.0,0.55709459]
[1717555148957,0.001,71072.0,71071.0,0.54809459]
[1717555149177,0.140676,71085.0,71077.0,0.01982566]
[1717555149399,0.00017434,71086.0,71077.0,0.01432029]
[1717555149677,0.14086434,71078.0,71077.0,0.01432029]
[1717555149840,0.65504534,71078.0,71077.0,0.01432029]
[1717555150044,1.14726427,71078.0,71077.0,0.01432029]
[1717555150463,1.14726427,71078.0,71077.0,0.02732029]
[1717555150715,0.94726427,71078.0,71077.0,0.01432029]
[1717555150915,1.14726427,71078.0,71077.0,0.01432029]
[1717555151131,1.14726427,71078.0,71077.0,0.02132029]
[1717555151343,1.14726427,71078.0,71077.0,0.01432029]
[1717555151833,1.43364527,71078.0,71077.0,0.01532029]
[1717555152287,1.28308434,71072.0,71071.0,0.002946]
[1717555152498,1.69850327,71072.0,71071.0,0.002946]
[1717555153807,1.11709927,71072.0,71071.0,0.002946]
[1717555154015,0.97468034,71072.0,71071.0,0.002946]
[1717555154238,0.97668034,71072.0,71071.0,0.002946]
[1717555154658,0.97468034,71072.0,71071.0,0.002946]
[1717555154876,0.98368034,71072.0,71071.0,0.003946]
[1717555155285,0.98168034,71072.0,71071.0,0.003946]
[1717555155703,0.99068034,71072.0,71071.0,0.004946]
[1717555156085,0.98168034,71072.0,71071.0,0.003946]
[1717555156287,0.97268034,71072.0,71071.0,0.002946]
[1717555156519,1.17468034,71072.0,71071.0,0.002946]
[1717555156735,0.59728034,71072.0,71071.0,0.002946]
[1717555157018,0.142702,71072.0,71071.0,0.167246]
[1717555157380,0.145702,71072.0,71071.0,0.167246]
[1717555157589,0.143702,71072.0,71071.0,0.167246]
[1717555157774,0.149702,71072.0,71071.0,0.168246]
[1717555158179,0.143702,71072.0,71071.0,0.167246]
[1717555158629,0.003,71072.0,71071.0,0.27027166]
[1717555158862,0.140696,71076.0,71074.0,0.01982566]
[1717555159102,0.171,71076.0,71074.0,0.01432029]
[1717555159663,0.140696,71075.0,71074.0,0.01432029]
[1717555160093,0.57546234,71075.0,71074.0,0.01432029]
[1717555160302,0.57546234,71075.0,71074.0,0.02332029]
[1717555160513,0.77546234,71075.0,71074.0,0.01432029]
[1717555160729,1.42457327,71075.0,71074.0,0.01432029]
[1717555160945,0.87008034,71072.0,71071.0,0.002946]
[1717555161206,0.95809034,71069.0,71068.0,0.000946]
[1717555161410,1.27350927,71069.0,71068.0,0.000946]
[1717555162046,1.69563327,71069.0,71068.0,0.000946]
[1717555162285,1.69563327,71069.0,71058.0,0.00948199]
[1717555162286,1.15154434,71066.0,71058.0,0.00948199]
[1717555162516,1.52466327,71066.0,71058.0,0.00948199]
[1717555163172,1.52466327,71066.0,71047.0,0.009493]
[1717555163173,0.38597434,71052.0,71047.0,0.009493]
[1717555163386,0.38597434,71052.0,71037.0,0.172893]
[1717555163387,0.140769,71038.0,71037.0,0.009493]
[1717555163631,0.84216227,71038.0,71037.0,0.009493]
[1717555163845,1.32370127,71038.0,71037.0,0.009493]
[1717555164070,1.36962401,71038.0,71037.0,0.009493]
[1717555164283,0.58875534,71032.0,71031.0,0.002]
[1717555164495,1.23166001,71032.0,71031.0,0.002]
[1717555164707,1.03166001,71032.0,71031.0,0.002]
[1717555165379,1.23166001,71032.0,71031.0,0.002]
[1717555167336,1.24066001,71032.0,71031.0,0.003]
[1717555167776,1.25366001,71032.0,71031.0,0.003]
[1717555168191,1.05366001,71032.0,71031.0,0.003]
[1717555168398,0.91656293,71032.0,71031.0,0.003]
[1717555168607,0.91673727,71032.0,71031.0,0.003]
[1717555168813,0.89473727,71032.0,71031.0,0.002]
[1717555169017,0.89473727,71032.0,71031.0,0.003]
[1717555169018,0.91973727,71032.0,71031.0,0.003]
[1717555169461,0.91973727,71032.0,71031.0,0.002]
[1717555169684,0.90756293,71032.0,71031.0,0.002]
[1717555169894,0.171781,71032.0,71031.0,0.003]
[1717555170145,0.34295534,71032.0,71031.0,0.003]
[1717555170354,0.333781,71032.0,71031.0,0.002]
[1717555170621,0.33395534,71032.0,71031.0,0.002]
[1717555170817,0.31195534,71032.0,71031.0,0.002]
[1717555171288,0.32095534,71032.0,71031.0,0.003]
[1717555171501,0.32095534,71032.0,71031.0,0.002]
[1717555171745,0.32595534,71032.0,71031.0,0.003]
[1717555171962,0.330781,71032.0,71031.0,0.003]
[1717555172380,0.32595534,71032.0,71031.0,0.003]
[1717555172826,0.33095534,71032.0,71031.0,0.003]
[1717555173249,0.32595534,71032.0,71031.0,0.003]
[1717555173468,0.52595534,71032.0,71031.0,0.003]
[1717555173689,0.33095534,71032.0,71031.0,0.003]
[1717555173908,0.31695534,71032.0,71031.0,0.002]
[1717555174111,0.37331534,71032.0,71031.0,0.002]
[1717555174338,0.37831534,71032.0,71031.0,0.003]
[1717555174552,0.150781,71032.0,71031.0,0.003]
[1717555175383,0.145781,71032.0,71031.0,0.003]
[1717555175608,0.140781,71032.0,71031.0,0.002]
[1717555175826,0.14195534,71032.0,71031.0,0.015]
[1717555176290,0.14195534,71032.0,71031.0,0.01]
[1717555176523,0.14295534,71032.0,71031.0,0.022]
[1717555177726,0.14195534,71032.0,71031.0,0.014]
[1717555177954,0.14195534,71032.0,71031.0,0.012]
[1717555178162,0.14195534,71032.0,71031.0,0.016]
[1717555178405,0.14095534,71032.0,71031.0,0.006]
[1717555178615,0.14095534,71032.0,71031.0,0.007]
[1717555178837,0.14095534,71032.0,71031.0,0.003]
[1717555179093,0.14095534,71032.0,71031.0,0.004]
[1717555179542,0.14095534,71032.0,71031.0,0.003]
[1717555179974,0.14095534,71032.0,71031.0,0.004]
[1717555180954,0.14095534,71032.0,71031.0,0.003]
[1717555181095,0.14095534,71032.0,71031.0,0.004]
[1717555181303,0.56693727,71032.0,71031.0,0.004]
[1717555181530,0.76693727,71032.0,71031.0,0.004]
[1717555181765,1.29630027,71032.0,71031.0,0.004]
[1717555182600,1.29630027,71032.0,71031.0,0.003]
[1717555182799,1.29630027,71032.0,71031.0,0.004]
[1717555183212,0.99612593,71032.0,71031.0,0.004]
[1717555183423,0.73776293,71032.0,71031.0,0.004]
[1717555183630,0.73793727,71032.0,71031.0,0.004]
[1717555183840,0.59351834,71032.0,71031.0,0.004]
[1717555184253,0.593344,71032.0,71031.0,0.004]
[1717555184473,0.593344,71032.0,71031.0,0.002]
[1717555184690,0.62151834,71032.0,71031.0,0.004]
[1717555185101,0.59351834,71032.0,71031.0,0.002]
[1717555185337,0.596344,71032.0,71031.0,0.002]
[1717555185571,0.59851834,71032.0,71031.0,0.002]
[1717555186021,0.596344,71032.0,71031.0,0.002]
[1717555186256,0.425344,71032.0,71031.0,0.002]
[1717555186503,0.598344,71032.0,71031.0,0.002]
[1717555186721,0.601344,71032.0,71031.0,0.002]
[1717555187356,0.60151834,71032.0,71031.0,0.002]
[1717555187787,0.599344,71032.0,71031.0,0.002]
[1717555187968,0.59551834,71032.0,71031.0,0.002]
[1717555188180,0.59851834,71032.0,71031.0,0.002]
[1717555188571,0.59651834,71032.0,71031.0,0.002]
[1717555188767,0.60651834,71032.0,71031.0,0.003]
[1717555189179,0.598344,71032.0,71031.0,0.002]
[1717555189383,0.596344,71032.0,71031.0,0.002]
[1717555189591,0.59651834,71032.0,71031.0,0.002]
[1717555189752,0.59851834,71032.0,71031.0,0.002]
[1717555190965,0.59351834,71032.0,71031.0,0.002]
[1717555191352,0.59551834,71032.0,71031.0,0.002]
[1717555191750,0.59451834,71032.0,71031.0,0.002]
[1717555192308,0.59351834,71032.0,71031.0,0.0231272]
[1717555192604,0.59751834,71032.0,71031.0,0.002]
[1717555193008,0.601344,71032.0,71031.0,0.002]
[1717555193355,0.60151834,71032.0,71031.0,0.002]
[1717555194434,0.59351834,71032.0,71031.0,0.002]
[1717555194639,0.59451834,71032.0,71031.0,0.002]
[1717555195048,0.594344,71032.0,71031.0,0.002]
[1717555195696,0.59551834,71032.0,71031.0,0.002]
[1717555195868,0.59451834,71032.0,71031.0,0.002]
[1717555196271,0.597344,71032.0,71031.0,0.002]
[1717555196737,0.596344,71032.0,71031.0,0.002]
[1717555197143,0.59651834,71032.0,71031.0,0.002]
[1717555197361,0.59651834,71032.0,71031.0,0.22103664]
[1717555198088,0.59851834,71032.0,71031.0,0.002]
[1717555199533,0.59351834,71032.0,71031.0,0.002]
[1717555199736,0.59751834,71032.0,71031.0,0.002]
[1717555199974,0.60151834,71032.0,71031.0,0.002]
[1717555200392,0.601344,71032.0,71031.0,0.002]
[1717555200631,0.60151834,71032.0,71031.0,0.002]
[1717555201265,0.601344,71032.0,71031.0,0.002]
[1717555202582,0.60151834,71032.0,71031.0,0.002]
[1717555203855,1.64030027,71032.0,71031.0,0.002]
[1717555204067,1.64030027,71032.0,71011.0,0.002]
[1717555204068,0.140821,71012.0,71011.0,0.002]
[1717555204317,0.311821,71012.0,71011.0,0.002]
[1717555204806,0.31199534,71012.0,71011.0,0.002]
[1717555205428,0.59363734,71012.0,71011.0,0.002]
[1717555205659,0.70427934,71012.0,71011.0,0.002]
[1717555205864,0.87527934,71012.0,71011.0,0.002]
[1717555206072,0.87627934,71012.0,71011.0,0.01]
[1717555206486,0.59463734,71012.0,71011.0,0.01]
[1717555207316,0.59463734,71012.0,71011.0,0.002]
[1717555207317,0.59363734,71012.0,71011.0,0.002]
[1717555207735,0.59763734,71012.0,71011.0,0.002]
[1717555208207,0.59363734,71012.0,71011.0,0.002]
[1717555208858,0.59363734,71012.0,71011.0,0.004]
[1717555208860,0.80463734,71012.0,71011.0,0.004]
[1717555209313,0.79363734,71012.0,71011.0,0.002]
[1717555209522,0.79363734,71012.0,71011.0,0.003]
[1717555209523,0.79963734,71012.0,71011.0,0.003]
[1717555209977,0.79963734,71012.0,71011.0,0.002]
[1717555210209,1.47949827,71012.0,71011.0,0.003]
[1717555210414,1.26749827,71012.0,71011.0,0.002]
[1717555210878,1.47949827,71012.0,71011.0,0.004]
[1717555211314,1.27349827,71012.0,71011.0,0.003]
[1717555211671,1.48349827,71012.0,71011.0,0.004]
[1717555212092,1.46749827,71012.0,71011.0,0.002]
[1717555212323,1.66759266,71012.0,71011.0,0.002]
[1717555212510,0.42270934,71000.0,70999.0,0.009493]
[1717555212687,1.01981827,71000.0,70999.0,0.009493]
[1717555212897,0.140845,71000.0,70999.0,0.009493]
[1717555213158,0.140845,71000.0,70999.0,0.27021866]
[1717555213386,0.33049041,71012.0,71006.0,0.01982566]
[1717555213387,0.140831,71007.0,71006.0,0.01982566]
[1717555213601,0.02784841,71012.0,71002.0,0.01982566]
[1717555213743,0.01684841,71012.0,71006.0,0.01982566]
[1717555213939,0.171,71013.0,71006.0,0.01982566]
[1717555214147,0.01217434,71012.0,71011.0,0.001946]
[1717555214353,0.75005727,71012.0,71011.0,0.001946]
[1717555214552,1.36749927,71012.0,71011.0,0.000946]
[1717555214814,1.36749927,71012.0,70999.0,0.009493]
[1717555214815,0.42270934,71000.0,70999.0,0.009493]
[1717555214935,1.18592827,71000.0,70999.0,0.009493]
[1717555215152,1.46761827,71000.0,70999.0,0.009493]
[1717555216450,1.26761827,71000.0,70999.0,0.009493]
[1717555216726,1.00061827,71000.0,70999.0,0.009493]
[1717555216914,0.426535,71000.0,70999.0,0.009493]
[1717555217144,0.140845,71000.0,70999.0,0.171493]
[1717555217358,0.140845,71000.0,70999.0,0.19131866]
[1717555217563,0.153845,71000.0,70999.0,0.19131866]
[1717555217974,0.025,71000.0,70999.0,0.19231866]
[1717555218210,0.025,71000.0,70999.0,0.253893]
[1717555218438,0.025,71000.0,70999.0,0.27271866]
[1717555218439,0.153845,71000.0,70999.0,0.27271866]
[1717555218909,0.141845,71000.0,70999.0,0.28071866]
[1717555219413,0.154845,71000.0,70999.0,0.28071866]
[1717555219636,0.141845,71000.0,70999.0,0.260893]
[1717555219866,0.141845,71000.0,70999.0,0.28071866]
[1717555220056,0.141845,71000.0,70999.0,0.256893]
[1717555220319,0.140845,71000.0,70999.0,0.252893]
[1717555220564,0.141845,71000.0,70999.0,0.261893]
[1717555220825,0.142845,71000.0,70999.0,0.28571866]
[1717555221066,0.141845,71000.0,70999.0,0.27671866]
[1717555221337,0.142845,71000.0,70999.0,0.264893]
[1717555221590,0.74012827,71000.0,70999.0,0.021493]
[1717555222053,0.73812827,71000.0,70999.0,0.009493]
[1717555222774,0.141845,71000.0,70999.0,0.013493]
[1717555223023,0.140845,71000.0,70999.0,0.085793]
[1717555223220,0.140839,71004.0,71003.0,0.01982566]